Workbook

Sheet Authorized Rev Req
A1: San Diego Gas & Electric Company
A2: Annual Period 2022
A3: Reporting Date: Quarter Ended September 30
A4: Submitted October 14, 2022
B6: Revenue Requirement Date: | C6: 2022-01-01
B7: Advice Letter: | C7: AL 3046-G
A8: Filing Description | B8: Authority for Revenue Requirement as of 1/1/2022 | C8: Authorized Revenue Requirement ($000) | D8: Revenue Recovery Mechanism | E8: Balancing Account
A9: Safety Affordability Reliability Proceedings
A10: Total Allocated Base Margin | B10: D.19-09-051, A.22-05-016 | C10: 412393.9278 | D10: Allocated Base Margin | E10: N
A11: SCG Transport excl Core Storge & Load Balance $000 | B11: D.20-02-045, AL 3024-G | C11: 10101.54873 | D11: ECPT | E11: N
A12: SCG Core Seasonal Storage | B12: D.20-02-045, AL 3024-G | C12: 14374.70092 | D12: Seasonal Storage | E12: N
A13: SCG Load Balancing Allocated to ALL SDGE $000 | B13: D.20-02-045, AL 3024-G | C13: 9102.083783 | D13: ECPT | E13: N
A14: Pipeline Safety Enhancement Plan (PSEP) -Local T (subtracted from Base Margin and allocated here) | B14: D.19-09-051 | C14: 2576.6109 | D14: Local Transmission | E14: N
A15: LUAF | B15: D.20-02-045, AL 3024-G, AL 3046-G | C15: 3180.230322 | D15: 46% Res (LUAF, Other) | E15: N
A16: Company Use Gas: Other | B16: D.20-02-045, AL 3024-G, AL 3046-G | C16: 234.7866005 | D16: ECPT | E16: N
A17: SDG&E NGLAPBA | B17: AL 3046-G | C17: 983.2214892 | D17: EPAM | E17: N
A18: SDG&ENERBA - NGLAP Subacct | B18: AL 3046-G | C18: 1620.035133 | D18: EPAM | E18: N
A19: SDG&E PSEP - 2017 Forecast Application RevReq Capital Cost - Local Transmission | B19: D.20-02-045, AL 3024-G, AL 3046-G | C19: 52.10801562 | D19: Local Transmission | E19: N
A20: CFCA | B20: D.20-02-045, AL 3024-G, AL 3046-G | C20: 37541.47962 | D20: CFCA | E20: Y
A21: CFCA -NGV only | B21: D.20-02-045, AL 3024-G, AL 3046-G | C21: -210.7232916 | D21: Non-Residential | E21: Y
A22: CFCA - C&I shortfall only | B22: D.20-02-045, AL 3024-G, AL 3046-G | C22: 5444.026009 | D22: Non-Residential | E22: Y
A23: Hazardous Substance Cleanup Cost Acct HSCCA | B23: D.20-02-045, AL 3024-G, AL 3046-G | C23: 290.5117224 | D23: ECPT | E23: Y
A24: Master Meter Balancing Account (MMBA) | B24: D.20-02-045, AL 3024-G, AL 3046-G | C24: 10311.12029 | D24: EPAM | E24: Y
A25: PBOPBA | B25: D.20-02-045, AL 3024-G, AL 3046-G | C25: -623.5169218 | D25: EPAM | E25: Y
A26: Pension BA | B26: D.20-02-045, AL 3024-G, AL 3046-G | C26: -575.9313062 | D26: EPAM | E26: Y
A27: Safety Enhancement Balancing Account - Local Transmission | B27: D.20-02-045, AL 3024-G, AL 3046-G | C27: 3036.463065 | D27: Local Transmission | E27: Y
A28: Safety Enhancement Balancing Account - Distribution | B28: D.20-02-045, AL 3024-G, AL 3046-G | C28: 38688.93341 | D28: Distribution | E28: Y
A29: Rewards & Penalties Bal Acct RPBA | B29: D.20-02-045, AL 3024-G, AL 3046-G | C29: -127.866075 | D29: EPAM | E29: Y
A30: SGPMA - Rev Req for NEXT Year | B30: D.20-02-045, AL 3024-G, AL 3046-G | C30: 1545.235943 | D30: ECPT | E30: Y
A31: Integrated Transmission Margin ITBA | B31: D.20-02-045, AL 3024-G, AL 3046-G | C31: 24.5502864 | D31: ECPT | E31: Y
A32: Liability Insurance Premium Balancing Account (LIPBA) | B32: D.20-02-045, AL 3024-G, AL 3046-G | C32: 3038.097942 | D32: EPAM | E32: Y
A33: Residential Uncollectible Balancing Account | B33: D.20-02-045, AL 3024-G, AL 3046-G | C33: 5629.176086 | D33: EPAM | E33: Y
A34: NFCA -Margin Only | B34: D.20-02-045, AL 3024-G, AL 3046-G | C34: -7128.789413 | D34: Non-Residential | E34: Y
A35: NFCA -Nonmargin Other | B35: D.20-02-045, AL 3024-G, AL 3046-G | C35: 1705.221976 | D35: Non-Residential | E35: Y
A36: NFCA -Nonmargin SCG | B36: D.20-02-045, AL 3024-G, AL 3046-G | C36: -100.2470028 | D36: Non-Residential | E36: Y
A37: Minimum Bil/Customer Charge Revenue | B37: D.20-02-045, AL 3024-G, AL 3046-G | C37: 1816.44096 | D37: All Residential | E37: N
A38: Borrego Revenue | B38: D.20-02-045, AL 3024-G, AL 3046-G | C38: 64.57174233 | D38: All Residential | E38: N
A39: Employee Discount (Schd GR) | B39: D.20-02-045, AL 3024-G, AL 3046-G | C39: -367.20947 | D39: All Residential | E39: N
A40: SDFFD | B40: D.20-02-045, AL 3024-G, AL 3046-G | C40: 1986.901219 | D40: All Residential | E40: N
A41: TSO Balancing Account AL | B41: AL 3040-G | C41: =0 -> 0 | D41: EPAM | E41: Y
A44: Subtotal Safety Affordability Reliability | C44: =SUM(C10:C43) -> 556607.7005
A46: Public Policy Proceedings
A47: Green House Gas Balancing Account (GHGBA) - End User Revenue Requirement | B47: D.20-02-045, AL 3024-G, AL 3046-G | C47: 62728.32324 | D47: GHG End User | E47: N
A48: Green House Gas Balancing Account (GHGBA) - LUAF Revenue Requirement | B48: D.20-02-045, AL 3024-G, AL 3046-G | C48: 830.7284995 | D48: 46% Res (LUAF, Other) | E48: N
A49: AB32 Fees (subtracted from base margin and allocated here) | B49: D.19-09-051 | C49: 528.8540862 | D49: 46% Res (LUAF, Other) | E49: N
A50: Green House Gas Balancing Account (GHGBA) - Company Gas Compressor | B50: D.20-02-045, AL 3024-G, AL 3046-G | C50: -138.095361 | D50: ECPT | E50: Y
A51: Green House Gas Balancing Account (GHGBA) - End User | B51: D.20-02-045, AL 3024-G, AL 3046-G | C51: -5290.586719 | D51: GHG End User | E51: Y
A52: Green House Gas Balancing Account (GHGBA) - LUAF | B52: D.20-02-045, AL 3024-G, AL 3046-G | C52: -11.2522146 | D52: 46% Res (LUAF, Other) | E52: Y
A53: FERC Settlement Proceeds MA | B53: D.20-02-045, AL 3024-G, AL 3046-G | C53: 1.0229286 | D53: Non-Residential | E53: Y
A54: New Environmental Regulation Balancing Account (NERBA) - EPCT | B54: D.20-02-045, AL 3024-G, AL 3046-G | C54: 413.2631544 | D54: ECPT | E54: Y
A55: New Environmental Regulation Balancing Account (NERBA) - EPAM | B55: D.20-02-045, AL 3024-G, AL 3046-G | C55: 105.3616458 | D55: EPAM | E55: Y
A56: TLS Adjustment | B56: D.20-02-045, AL 3024-G, AL 3046-G | C56: 6681.993182 | D56: Non-Residential | E56: N
A57: CSI Thermal Program memoradum Account | B57: D.20-02-045, AL 3024-G, AL 3046-G | C57: 806.0677368 | D57: 46% Res (LUAF, Other) | E57: Y
A64: California Alternate Rates for Energy (CARE) - Funding | B64: AL 3027-G-A, D.21-06-015 | C64: 25613.072 | D64: Public Purpose Programs | E64: N
A65: California Alternate Rates for Energy (CARE) - Admin Expenses | B65: AL 3027-G-A, D.21-06-015 | C65: 727.283 | D65: Public Purpose Programs | E65: N
A66: California Alternate Rates for Energy (CARE) - Amortization | B66: AL 3027-G-A | C66: 1000 | D66: Public Purpose Programs | E66: Y
A67: Energy Savings Assistance (ESA/LIEE/DAP) | B67: AL 3027-G-A, D.21-06-015 | C67: 8041.195 | D67: Public Purpose Programs | E67: N
A68: Energy Efficiency | B68: AL 3027-G-A, AL 3035-G | C68: 15368.68175 | D68: Public Purpose Programs | E68: N
A69: RD&D | B69: AL 3027-G-A | C69: 1929.78072 | D69: Public Purpose Programs | E69: N
A70: Bureau Of Equalization BOE | B70: AL 3027-G-A | C70: 56.15999 | D70: Public Purpose Programs | E70: N
A76: Subtotal Public Policy | C76: =SUM(C47:C75) -> 119391.8526
A78: Procurement
A79: Procurement | B79: D.97-07-061 | C79: 313349.6293 | D79: Core Procurement
A85: Subtotal Procrement | C85: =SUM(C79:C84) -> 313349.6293
A87: Total Authorized Revenue | C87: =C44+C76+C85 -> 989349.1825

Sheet Incremental Rev Req
A1: San Diego Gas & Electric Company
A2: Annual Period 2022
A3: Reporting Date: Quarter Ended September 30
A4: Submitted October 14, 2022
A6: Current Revenue Requirement ($000): | B6: ='Authorized Rev Req'!C87 -> 989349.1825
A7: Current Revenue Requirement Effective: | B7: ='Authorized Rev Req'!C6 -> 2022-01-01
A8: Approved Application(s), Implemented Since Jan 1 or To Be Implemented
A9: Filing Description | B9: Proceeding | C9: Authority for Revenue Requirement | D9: Authorized Revenue Requirement with FF&U ($000) | E9: Revenue Recovery Mechanism | F9: Authorized Revenue Requirement with FF&U ($000) - Breakout by Year
A10: Safety Affordability Reliability Proceedings | D10: =B7 -> 2022-01-01 | F10: 2022 | G10: 2023 | H10: 2024 | I10: 2025 | J10: 2026
A11: ='Authorized Rev Req'!A10 -> Total Allocated Base Margin | C11: ='Authorized Rev Req'!B10 -> D.19-09-051, A.22-05-016 | D11: =F11 -> 412393.9278 | E11: ='Authorized Rev Req'!D10 -> Allocated Base Margin | F11: ='Authorized Rev Req'!C10 -> 412393.9278 | G11: 504916 | H11: =G11 -> 504916 | I11: =H11 -> 504916 | J11: =I11 -> 504916
A12: ='Authorized Rev Req'!A11 -> SCG Transport excl Core Storge & Load Balance $000 | C12: ='Authorized Rev Req'!B11 -> D.20-02-045, AL 3024-G | D12: =F12 -> 10101.54873 | E12: ='Authorized Rev Req'!D11 -> ECPT | F12: ='Authorized Rev Req'!C11 -> 10101.54873 | G12: =0 -> 0 | H12: =G12 -> 0 | I12: 0 | J12: 0
A13: ='Authorized Rev Req'!A12 -> SCG Core Seasonal Storage | C13: ='Authorized Rev Req'!B12 -> D.20-02-045, AL 3024-G | D13: 14374.70092 | E13: ='Authorized Rev Req'!D12 -> Seasonal Storage | F13: ='Authorized Rev Req'!C12 -> 14374.70092 | G13: =0 -> 0 | H13: =G13 -> 0 | I13: 0 | J13: 0
A14: ='Authorized Rev Req'!A13 -> SCG Load Balancing Allocated to ALL SDGE $000 | C14: ='Authorized Rev Req'!B13 -> D.20-02-045, AL 3024-G | D14: 9102.083783 | E14: ='Authorized Rev Req'!D13 -> ECPT | F14: ='Authorized Rev Req'!C13 -> 9102.083783 | G14: =0 -> 0 | H14: =G14 -> 0 | I14: 0 | J14: 0
A15: ='Authorized Rev Req'!A14 -> Pipeline Safety Enhancement Plan (PSEP) -Local T (subtracted from Base Margin and allocated here) | C15: ='Authorized Rev Req'!B14 -> D.19-09-051 | D15: 2576.6109 | E15: ='Authorized Rev Req'!D14 -> Local Transmission | F15: ='Authorized Rev Req'!C14 -> 2576.6109 | G15: 2728.4247 | H15: =G15 -> 2728.4247 | I15: =0 -> 0 | J15: =I15 -> 0
A16: ='Authorized Rev Req'!A15 -> LUAF | C16: ='Authorized Rev Req'!B15 -> D.20-02-045, AL 3024-G, AL 3046-G | D16: =F16 -> 3180.230322 | E16: ='Authorized Rev Req'!D15 -> 46% Res (LUAF, Other) | F16: ='Authorized Rev Req'!C15 -> 3180.230322 | G16: =0 -> 0 | H16: =G16 -> 0 | I16: 0 | J16: 0
A17: ='Authorized Rev Req'!A16 -> Company Use Gas: Other | C17: ='Authorized Rev Req'!B16 -> D.20-02-045, AL 3024-G, AL 3046-G | D17: 234.7866005 | E17: ='Authorized Rev Req'!D16 -> ECPT | F17: ='Authorized Rev Req'!C16 -> 234.7866005 | G17: =0 -> 0 | H17: =G17 -> 0 | I17: 0 | J17: 0
A18: ='Authorized Rev Req'!A17 -> SDG&E NGLAPBA | C18: ='Authorized Rev Req'!B17 -> AL 3046-G | D18: 983.2214892 | E18: ='Authorized Rev Req'!D17 -> EPAM | F18: ='Authorized Rev Req'!C17 -> 983.2214892 | G18: =0 -> 0 | H18: =G18 -> 0 | I18: 0 | J18: 0
A19: ='Authorized Rev Req'!A18 -> SDG&ENERBA - NGLAP Subacct | C19: ='Authorized Rev Req'!B18 -> AL 3046-G | D19: 1620.035133 | E19: ='Authorized Rev Req'!D18 -> EPAM | F19: ='Authorized Rev Req'!C18 -> 1620.035133 | G19: =0 -> 0 | H19: =G19 -> 0 | I19: 0 | J19: 0
A20: ='Authorized Rev Req'!A19 -> SDG&E PSEP - 2017 Forecast Application RevReq Capital Cost - Local Transmission | C20: ='Authorized Rev Req'!B19 -> D.20-02-045, AL 3024-G, AL 3046-G | D20: 52.10801562 | E20: ='Authorized Rev Req'!D19 -> Local Transmission | F20: ='Authorized Rev Req'!C19 -> 52.10801562 | G20: =0 -> 0 | H20: =G20 -> 0 | I20: 0 | J20: 0
A21: ='Authorized Rev Req'!A20 -> CFCA | C21: ='Authorized Rev Req'!B20 -> D.20-02-045, AL 3024-G, AL 3046-G | D21: 37541.47962 | E21: ='Authorized Rev Req'!D20 -> CFCA | F21: ='Authorized Rev Req'!C20 -> 37541.47962 | G21: =0 -> 0 | H21: =G21 -> 0 | I21: 0 | J21: 0
A22: ='Authorized Rev Req'!A21 -> CFCA -NGV only | C22: ='Authorized Rev Req'!B21 -> D.20-02-045, AL 3024-G, AL 3046-G | D22: -210.7232916 | E22: ='Authorized Rev Req'!D21 -> Non-Residential | F22: ='Authorized Rev Req'!C21 -> -210.7232916 | G22: =0 -> 0 | H22: =G22 -> 0 | I22: 0 | J22: 0
A23: ='Authorized Rev Req'!A22 -> CFCA - C&I shortfall only | C23: ='Authorized Rev Req'!B22 -> D.20-02-045, AL 3024-G, AL 3046-G | D23: 5444.026009 | E23: ='Authorized Rev Req'!D22 -> Non-Residential | F23: ='Authorized Rev Req'!C22 -> 5444.026009 | G23: =0 -> 0 | H23: =G23 -> 0 | I23: 0 | J23: 0
A24: ='Authorized Rev Req'!A23 -> Hazardous Substance Cleanup Cost Acct HSCCA | C24: ='Authorized Rev Req'!B23 -> D.20-02-045, AL 3024-G, AL 3046-G | D24: 290.5117224 | E24: ='Authorized Rev Req'!D23 -> ECPT | F24: ='Authorized Rev Req'!C23 -> 290.5117224 | G24: =0 -> 0 | H24: =G24 -> 0 | I24: 0 | J24: 0
A25: ='Authorized Rev Req'!A24 -> Master Meter Balancing Account (MMBA) | C25: ='Authorized Rev Req'!B24 -> D.20-02-045, AL 3024-G, AL 3046-G | D25: 10311.12029 | E25: ='Authorized Rev Req'!D24 -> EPAM | F25: ='Authorized Rev Req'!C24 -> 10311.12029 | G25: 15077.546 | H25: 18705.7723 | I25: 21791.8616 | J25: 24855.4471
A26: ='Authorized Rev Req'!A25 -> PBOPBA | C26: ='Authorized Rev Req'!B25 -> D.20-02-045, AL 3024-G, AL 3046-G | D26: -623.5169218 | E26: ='Authorized Rev Req'!D25 -> EPAM | F26: ='Authorized Rev Req'!C25 -> -623.5169218 | G26: =0 -> 0 | H26: =G26 -> 0 | I26: 0 | J26: 0
A27: ='Authorized Rev Req'!A26 -> Pension BA | C27: ='Authorized Rev Req'!B26 -> D.20-02-045, AL 3024-G, AL 3046-G | D27: -575.9313062 | E27: ='Authorized Rev Req'!D26 -> EPAM | F27: ='Authorized Rev Req'!C26 -> -575.9313062 | G27: =0 -> 0 | H27: =G27 -> 0 | I27: 0 | J27: 0
A28: ='Authorized Rev Req'!A27 -> Safety Enhancement Balancing Account - Local Transmission | C28: ='Authorized Rev Req'!B27 -> D.20-02-045, AL 3024-G, AL 3046-G | D28: 3036.463065 | E28: ='Authorized Rev Req'!D27 -> Local Transmission | F28: ='Authorized Rev Req'!C27 -> 3036.463065 | G28: =0 -> 0 | H28: =G28 -> 0 | I28: 0 | J28: 0
A29: ='Authorized Rev Req'!A28 -> Safety Enhancement Balancing Account - Distribution | C29: ='Authorized Rev Req'!B28 -> D.20-02-045, AL 3024-G, AL 3046-G | D29: 38688.93341 | E29: ='Authorized Rev Req'!D28 -> Distribution | F29: ='Authorized Rev Req'!C28 -> 38688.93341 | G29: =0 -> 0 | H29: =G29 -> 0 | I29: 0 | J29: 0
A30: ='Authorized Rev Req'!A29 -> Rewards & Penalties Bal Acct RPBA | C30: ='Authorized Rev Req'!B29 -> D.20-02-045, AL 3024-G, AL 3046-G | D30: -127.866075 | E30: ='Authorized Rev Req'!D29 -> EPAM | F30: ='Authorized Rev Req'!C29 -> -127.866075 | G30: =0 -> 0 | H30: =G30 -> 0 | I30: 0 | J30: 0
A31: ='Authorized Rev Req'!A30 -> SGPMA - Rev Req for NEXT Year | C31: ='Authorized Rev Req'!B30 -> D.20-02-045, AL 3024-G, AL 3046-G | D31: 1545.235943 | E31: ='Authorized Rev Req'!D30 -> ECPT | F31: ='Authorized Rev Req'!C30 -> 1545.235943 | G31: =0 -> 0 | H31: =G31 -> 0 | I31: 0 | J31: 0
A32: ='Authorized Rev Req'!A31 -> Integrated Transmission Margin ITBA | C32: ='Authorized Rev Req'!B31 -> D.20-02-045, AL 3024-G, AL 3046-G | D32: 24.5502864 | E32: ='Authorized Rev Req'!D31 -> ECPT | F32: ='Authorized Rev Req'!C31 -> 24.5502864 | G32: =0 -> 0 | H32: =G32 -> 0 | I32: 0 | J32: 0
A33: ='Authorized Rev Req'!A32 -> Liability Insurance Premium Balancing Account (LIPBA) | C33: ='Authorized Rev Req'!B32 -> D.20-02-045, AL 3024-G, AL 3046-G | D33: 3038.097942 | E33: ='Authorized Rev Req'!D32 -> EPAM | F33: ='Authorized Rev Req'!C32 -> 3038.097942 | G33: =0 -> 0 | H33: =G33 -> 0 | I33: 0 | J33: 0
A34: ='Authorized Rev Req'!A33 -> Residential Uncollectible Balancing Account | C34: ='Authorized Rev Req'!B33 -> D.20-02-045, AL 3024-G, AL 3046-G | D34: 5629.176086 | E34: ='Authorized Rev Req'!D33 -> EPAM | F34: ='Authorized Rev Req'!C33 -> 5629.176086 | G34: =0 -> 0 | H34: =G34 -> 0 | I34: 0 | J34: 0
A35: ='Authorized Rev Req'!A34 -> NFCA -Margin Only | C35: ='Authorized Rev Req'!B34 -> D.20-02-045, AL 3024-G, AL 3046-G | D35: -7128.789413 | E35: ='Authorized Rev Req'!D34 -> Non-Residential | F35: ='Authorized Rev Req'!C34 -> -7128.789413 | G35: =0 -> 0 | H35: =G35 -> 0 | I35: 0 | J35: 0
A36: ='Authorized Rev Req'!A35 -> NFCA -Nonmargin Other | C36: ='Authorized Rev Req'!B35 -> D.20-02-045, AL 3024-G, AL 3046-G | D36: 1705.221976 | E36: ='Authorized Rev Req'!D35 -> Non-Residential | F36: ='Authorized Rev Req'!C35 -> 1705.221976 | G36: =0 -> 0 | H36: =G36 -> 0 | I36: 0 | J36: 0
A37: ='Authorized Rev Req'!A36 -> NFCA -Nonmargin SCG | C37: ='Authorized Rev Req'!B36 -> D.20-02-045, AL 3024-G, AL 3046-G | D37: -100.2470028 | E37: ='Authorized Rev Req'!D36 -> Non-Residential | F37: ='Authorized Rev Req'!C36 -> -100.2470028 | G37: =0 -> 0 | H37: =G37 -> 0 | I37: 0 | J37: 0
A38: ='Authorized Rev Req'!A37 -> Minimum Bil/Customer Charge Revenue | C38: ='Authorized Rev Req'!B37 -> D.20-02-045, AL 3024-G, AL 3046-G | D38: =F38 -> 1816.44096 | E38: ='Authorized Rev Req'!D37 -> All Residential | F38: ='Authorized Rev Req'!C37 -> 1816.44096 | G38: =0 -> 0 | H38: =G38 -> 0 | I38: =H38 -> 0 | J38: =I38 -> 0
A39: ='Authorized Rev Req'!A38 -> Borrego Revenue | C39: ='Authorized Rev Req'!B38 -> D.20-02-045, AL 3024-G, AL 3046-G | D39: 64.57174233 | E39: ='Authorized Rev Req'!D38 -> All Residential | F39: ='Authorized Rev Req'!C38 -> 64.57174233 | G39: =0 -> 0 | H39: 0 | I39: 0 | J39: 0
A40: ='Authorized Rev Req'!A39 -> Employee Discount (Schd GR) | C40: ='Authorized Rev Req'!B39 -> D.20-02-045, AL 3024-G, AL 3046-G | D40: -367.20947 | E40: ='Authorized Rev Req'!D39 -> All Residential | F40: ='Authorized Rev Req'!C39 -> -367.20947 | G40: =0 -> 0 | H40: 0 | I40: 0 | J40: 0
A41: ='Authorized Rev Req'!A40 -> SDFFD | C41: ='Authorized Rev Req'!B40 -> D.20-02-045, AL 3024-G, AL 3046-G | D41: 1986.901219 | E41: ='Authorized Rev Req'!D40 -> All Residential | F41: ='Authorized Rev Req'!C40 -> 1986.901219 | G41: =0 -> 0 | H41: 0 | I41: 0 | J41: 0
A42: ='Authorized Rev Req'!A41 -> TSO Balancing Account AL | C42: ='Authorized Rev Req'!B41 -> AL 3040-G | D42: =F42 -> 0 | E42: ='Authorized Rev Req'!D41 -> EPAM | F42: ='Authorized Rev Req'!C41 -> 0 | G42: =7058.15 -> 7058.15 | H42: =3529.075 -> 3529.075 | I42: =0 -> 0 | J42: 0
A45: ='Authorized Rev Req'!A46 -> Public Policy Proceedings
A46: ='Authorized Rev Req'!A47 -> Green House Gas Balancing Account (GHGBA) - End User Revenue Requirement | C46: ='Authorized Rev Req'!B47 -> D.20-02-045, AL 3024-G, AL 3046-G | D46: 62728.32324 | E46: ='Authorized Rev Req'!D47 -> GHG End User | F46: ='Authorized Rev Req'!C47 -> 62728.32324 | G46: =0 -> 0 | H46: =G46*1.121 -> 0 | I46: =H46*1.121 -> 0 | J46: 0
A47: ='Authorized Rev Req'!A48 -> Green House Gas Balancing Account (GHGBA) - LUAF Revenue Requirement | C47: ='Authorized Rev Req'!B48 -> D.20-02-045, AL 3024-G, AL 3046-G | D47: 830.7284995 | E47: ='Authorized Rev Req'!D48 -> 46% Res (LUAF, Other) | F47: ='Authorized Rev Req'!C48 -> 830.7284995 | G47: =0 -> 0 | H47: =G47 -> 0 | I47: 0 | J47: 0
A48: ='Authorized Rev Req'!A49 -> AB32 Fees (subtracted from base margin and allocated here) | C48: ='Authorized Rev Req'!B49 -> D.19-09-051 | D48: 528.8540862 | E48: ='Authorized Rev Req'!D49 -> 46% Res (LUAF, Other) | F48: ='Authorized Rev Req'!C49 -> 528.8540862 | G48: =0 -> 0 | H48: =G48 -> 0 | I48: 0 | J48: 0
A49: ='Authorized Rev Req'!A50 -> Green House Gas Balancing Account (GHGBA) - Company Gas Compressor | C49: ='Authorized Rev Req'!B50 -> D.20-02-045, AL 3024-G, AL 3046-G | D49: -138.095361 | E49: ='Authorized Rev Req'!D50 -> ECPT | F49: ='Authorized Rev Req'!C50 -> -138.095361 | G49: =0 -> 0 | H49: =G49 -> 0 | I49: 0 | J49: 0
A50: ='Authorized Rev Req'!A51 -> Green House Gas Balancing Account (GHGBA) - End User | C50: ='Authorized Rev Req'!B51 -> D.20-02-045, AL 3024-G, AL 3046-G | D50: -5290.586719 | E50: ='Authorized Rev Req'!D51 -> GHG End User | F50: ='Authorized Rev Req'!C51 -> -5290.586719 | G50: =0 -> 0 | H50: =G50 -> 0 | I50: 0 | J50: 0
A51: ='Authorized Rev Req'!A52 -> Green House Gas Balancing Account (GHGBA) - LUAF | C51: ='Authorized Rev Req'!B52 -> D.20-02-045, AL 3024-G, AL 3046-G | D51: -11.2522146 | E51: ='Authorized Rev Req'!D52 -> 46% Res (LUAF, Other) | F51: ='Authorized Rev Req'!C52 -> -11.2522146 | G51: =0 -> 0 | H51: =G51 -> 0 | I51: 0 | J51: 0
A52: ='Authorized Rev Req'!A53 -> FERC Settlement Proceeds MA | C52: ='Authorized Rev Req'!B53 -> D.20-02-045, AL 3024-G, AL 3046-G | D52: 1.0229286 | E52: ='Authorized Rev Req'!D53 -> Non-Residential | F52: ='Authorized Rev Req'!C53 -> 1.0229286 | G52: =0 -> 0 | H52: =G52 -> 0 | I52: 0 | J52: 0
A53: ='Authorized Rev Req'!A54 -> New Environmental Regulation Balancing Account (NERBA) - EPCT | C53: ='Authorized Rev Req'!B54 -> D.20-02-045, AL 3024-G, AL 3046-G | D53: 413.2631544 | E53: ='Authorized Rev Req'!D54 -> ECPT | F53: ='Authorized Rev Req'!C54 -> 413.2631544 | G53: =0 -> 0 | H53: =G53 -> 0 | I53: 0 | J53: 0
A54: ='Authorized Rev Req'!A55 -> New Environmental Regulation Balancing Account (NERBA) - EPAM | C54: ='Authorized Rev Req'!B55 -> D.20-02-045, AL 3024-G, AL 3046-G | D54: 105.3616458 | E54: ='Authorized Rev Req'!D55 -> EPAM | F54: ='Authorized Rev Req'!C55 -> 105.3616458 | G54: =0 -> 0 | H54: =G54 -> 0 | I54: 0 | J54: 0
A55: ='Authorized Rev Req'!A56 -> TLS Adjustment | C55: ='Authorized Rev Req'!B56 -> D.20-02-045, AL 3024-G, AL 3046-G | D55: 6681.993182 | E55: ='Authorized Rev Req'!D56 -> Non-Residential | F55: ='Authorized Rev Req'!C56 -> 6681.993182 | G55: =0 -> 0 | H55: =G55 -> 0 | I55: 0 | J55: 0
A56: ='Authorized Rev Req'!A57 -> CSI Thermal Program memoradum Account | C56: ='Authorized Rev Req'!B57 -> D.20-02-045, AL 3024-G, AL 3046-G | D56: =F56 -> 806.0677368 | E56: ='Authorized Rev Req'!D57 -> 46% Res (LUAF, Other) | F56: ='Authorized Rev Req'!C57 -> 806.0677368 | G56: =0 -> 0 | H56: =G56 -> 0 | I56: =H56 -> 0 | J56: =I56 -> 0
A62: ='Authorized Rev Req'!A64 -> California Alternate Rates for Energy (CARE) - Funding | C62: ='Authorized Rev Req'!B64 -> AL 3027-G-A, D.21-06-015 | D62: 25613.072 | E62: ='Authorized Rev Req'!D64 -> Public Purpose Programs | F62: ='Authorized Rev Req'!C64 -> 25613.072 | G62: 11537.458 | H62: 11652.832 | I62: 11769.36 | J62: 11887.054
A63: ='Authorized Rev Req'!A65 -> California Alternate Rates for Energy (CARE) - Admin Expenses | C63: ='Authorized Rev Req'!B65 -> AL 3027-G-A, D.21-06-015 | D63: =F63 -> 727.283 | E63: ='Authorized Rev Req'!D65 -> Public Purpose Programs | F63: ='Authorized Rev Req'!C65 -> 727.283 | G63: 761.46983 | H63: 771.47048 | I63: 813.9527 | J63: 814.18139
A64: ='Authorized Rev Req'!A66 -> California Alternate Rates for Energy (CARE) - Amortization | C64: ='Authorized Rev Req'!B66 -> AL 3027-G-A | D64: 1000 | E64: ='Authorized Rev Req'!D66 -> Public Purpose Programs | F64: ='Authorized Rev Req'!C66 -> 1000 | G64: =0 -> 0 | H64: =G64 -> 0 | I64: =H64 -> 0 | J64: =I64 -> 0
A65: ='Authorized Rev Req'!A67 -> Energy Savings Assistance (ESA/LIEE/DAP) | C65: ='Authorized Rev Req'!B67 -> AL 3027-G-A, D.21-06-015 | D65: 8041.195 | E65: ='Authorized Rev Req'!D67 -> Public Purpose Programs | F65: ='Authorized Rev Req'!C67 -> 8041.195 | G65: 12315.64164 | H65: 13505.58822 | I65: 14340.98863 | J65: 15138.70932
A66: ='Authorized Rev Req'!A68 -> Energy Efficiency | C66: ='Authorized Rev Req'!B68 -> AL 3027-G-A, AL 3035-G | D66: 15368.68175 | E66: ='Authorized Rev Req'!D68 -> Public Purpose Programs | F66: ='Authorized Rev Req'!C68 -> 15368.68175 | G66: 11521.57479 | H66: =G66 -> 11521.57479 | I66: =H66 -> 11521.57479 | J66: =I66 -> 11521.57479
A67: ='Authorized Rev Req'!A69 -> RD&D | C67: ='Authorized Rev Req'!B69 -> AL 3027-G-A | D67: =F67 -> 1929.78072 | E67: ='Authorized Rev Req'!D69 -> Public Purpose Programs | F67: ='Authorized Rev Req'!C69 -> 1929.78072 | G67: =0 -> 0 | H67: =G67 -> 0 | I67: 0 | J67: 0
A68: ='Authorized Rev Req'!A70 -> Bureau Of Equalization BOE | C68: ='Authorized Rev Req'!B70 -> AL 3027-G-A | D68: 56.15999 | E68: ='Authorized Rev Req'!D70 -> Public Purpose Programs | F68: ='Authorized Rev Req'!C70 -> 56.15999 | G68: =0 -> 0 | H68: 0 | I68: 0 | J68: 0
A72: Procurement | C72: ='Authorized Rev Req'!B79 -> D.97-07-061 | D72: =F72 -> 313349.6293 | E72: ='Authorized Rev Req'!D79 -> Core Procurement | F72: ='Authorized Rev Req'!C79 -> 313349.6293 | G72: =0 -> 0 | H72: =G72 -> 0 | I72: =H72 -> 0 | J72: =I72 -> 0
A76: Total Approved, Implemented Since Jan 1 or To Be Implemented | D76: =SUM(D11:D75) -> 989349.1825 | F76: =SUM(F11:F75) -> 989349.1825 | G76: =SUM(G11:G75) -> 565916.265 | H76: =SUM(H11:H75) -> 567330.7375 | I76: =SUM(I11:I75) -> 565153.7377 | J76: =SUM(J11:J75) -> 569132.9666
A78: CPUC Fee | E78: CPUC Fee | F78: 0.00577
A81: Pending Application(s) Not Yet Approved
A82: Filing Description | B82: Proceeding | C82: Basis of Revenue Requirement Forecast: Application, Amended Application , Amended Testimony, Proposed Settlement Agreement, Proposed Decision | D82: Proposed Revenue Requirement with FF&U ($000) | E82: Proposed Revenue Recovery Mechanism | F82: Incremental Revenue Requirement with FF&U ($000) - Breakout by Year
A83: Safety Affordability Reliability Proceedings | F83: 2022 | G83: 2023 | H83: 2024 | I83: 2025 | J83: 2026
A84: 2024 GRC Application | B84: A.22-05-016 | C84: Application | D84: =SUM(F84:J84) -> 674184.6162 | E84: Allocated Base Margin | H84: 152304.5745 | I84: 211980.9705 | J84: 309899.0712
A85: Pipeline Safety Enhancement Plan (PSEP) -Local T | B85: A.22-05-016 | C85: Application | D85: -706.02138 | E85: Local Transmission | H85: -706.02138
A86: CIS Balancing Account AL | B86: AL 3039-G | C86: Advice Letter | D86: 28209.216 | E86: EPAM | G86: 16760.724 | H86: 11448.492
A87: Pipeline Safety Enhancement Plan (PSEP) - High Pressure Distribution | B87: A.22-05-016 | C87: Application | D87: 40844 | E87: Distribution | H87: 40844
D88: 0
D89: 0
D90: 0
A91: Public Policy Proceedings | D91: 0
A92: SDG&E Cost of Capital Application | B92: A.22-04-012 | C92: Application | D92: 5480 | E92: EPAM | G92: 1370 | H92: 1370 | I92: 1370 | J92: 1370
A93: Triennial Cost Allocation Proceeding | B93: A. 22-09-015 | C93: Application | D93: 0 | E93: EPAM | G93: 0 | H93: 0 | I93: 0 | J93: 0
A94: Natural Gas Leak Abatement | B94: AL 3071-G | C94: Advice Letter | D94: 58899 | E94: EPAM | G94: 13170 | H94: 15243 | I94: 15243 | J94: 15243
A95: Energy Efficiency | B95: A.22-03-005 | C95: Application | D95: 47840.29451 | E95: Public Purpose Programs | H95: 15145.37304 | I95: 16560.78862 | J95: 16134.13286
D96: 0
D97: 0
D98: 0
D99: =SUM(F99:J99) -> 0
D100: 0
D101: 0
D102: 0
D103: 0
D104: 0
D105: 0
D106: 0
D107: 0
D108: 0
D109: 0
D110: 0
D111: 0
D112: 0
A113: Total Pending, Filed but not Approved | D113: =SUM(D85:D111) -> 180566.4891 | F113: =SUM(F84:F112) -> 0 | G113: =SUM(G84:G112) -> 31300.724 | H113: 235649.4182 | I113: 245154.7591 | J113: 342646.2041
